bitfinex/quotes_ETHUSD_20250326
["timestamp","ask_amount","ask_price","bid_price","bid_amount"]
[1742951679448,2.22198763,2073.7,2073.4,4.82288]
[1742951679652,1.40278763,2073.5,2073.3,4.8232]
[1742951680284,1.40278763,2073.5,2073.4,4.82299]
[1742951681982,1.40278763,2073.5,2073.2,0.7763]
[1742951682182,1.40278763,2073.4,2073.2,5.59964]
[1742951682687,1.40278763,2073.4,2073.2,10.42293]
[1742951684087,1.40278763,2073.4,2073.3,4.82322]
[1742951685184,1.40278763,2073.4,2073.1,4.82368]
[1742951685390,1.40278763,2073.3,2073.2,4.82344]
[1742951686496,1.40278763,2073.4,2073.2,4.82344]
[1742951688980,1.40278763,2073.3,2073.2,4.82344]
[1742951690675,1.40278763,2073.4,2073.2,4.82344]
[1742951692609,1.40278763,2073.4,2073.2,9.64681]
[1742951693907,1.40278763,2073.4,2073.2,4.82337]
[1742951694204,1.40278763,2073.4,2073.3,0.128531]
[1742951695110,1.40278763,2073.4,2073.3,4.951751]
[1742951698311,1.40278763,2073.4,2073.3,0.128531]
[1742951699499,1.40278763,2073.4,2073.3,4.951751]
[1742951700420,1.40278763,2073.4,2073.3,0.128531]
[1742951702123,1.40278763,2073.4,2073.3,4.951751]
[1742951702421,0.36441602,2073.9,2073.6,5.62462]
[1742951702715,1.40278763,2073.9,2073.7,4.8222]
[1742951702923,1.40278763,2073.8,2073.7,4.94921298]
[1742951703286,1.40278763,2073.8,2073.7,0.12701298]
[1742951703925,1.40278763,2073.8,2073.7,4.94930298]
[1742951705829,1.40278763,2073.8,2073.7,0.12701298]
[1742951707432,1.40278763,2073.8,2073.7,4.94930298]
[1742951708841,1.40278763,2073.8,2073.7,0.12701298]
[1742951709334,1.40278763,2073.8,2073.7,4.94930298]
[1742951711532,1.40278763,2073.8,2073.7,0.12701298]
[1742951712403,1.40278763,2073.8,2073.7,4.94930298]
[1742951713939,1.40278763,2073.8,2073.7,0.12701298]
[1742951716452,1.40278763,2073.8,2073.7,4.94930298]
[1742951719460,3.22168886,2073.8,2073.7,0.12701298]
[1742951719622,6.22168886,2073.8,2073.7,0.12701298]
[1742951719821,0.7915,2073.6,2073.0,5.59577]
[1742951720028,1.40278763,2073.4,2073.1,4.95218359]
[1742951720229,1.40278763,2073.2,2073.1,4.95218359]
[1742951720619,2.19428763,2073.2,2073.1,0.12859359]
[1742951720964,3.0,2073.1,2072.9,4.82405]
[1742951721157,1.23177876,2073.2,2072.9,4.82405]
[1742951721328,1.23177876,2073.2,2072.8,4.8243]
[1742951721329,0.7915,2073.2,2072.8,4.8243]
[1742951721837,1.40278763,2072.9,2072.8,4.8243]
[1742951722268,1.40278763,2072.9,2072.7,4.82446]
[1742951722564,1.40278763,2072.9,2072.7,9.64897]
[1742951722740,1.40278763,2072.8,2072.7,4.82446]
[1742951722940,2.25671853,2072.9,2072.7,4.82446]
[1742951724063,2.25671853,2072.9,2072.8,0.13035986]
[1742951724679,3.03471853,2072.9,2072.8,0.13035986]
[1742951724975,3.0,2072.8,2072.7,4.82462]
[1742951725144,3.0,2072.8,2072.7,4.95545725]
[1742951725340,3.0,2072.8,2072.7,0.13083725]
[1742951727265,3.0,2072.8,2072.7,4.95545725]
[1742951730084,3.0,2072.8,2072.7,0.13083725]
[1742951730290,3.0,2072.8,2072.7,4.95545725]
[1742951731190,3.0,2072.8,2072.7,5.0733846]
[1742951732081,3.0,2072.8,2072.7,0.2487646]
[1742951732282,4.33946825,2072.8,2072.7,0.2487646]
[1742951732783,4.33946825,2072.8,2072.5,4.82497]
[1742951732964,2.25671853,2072.7,2072.6,0.24924766]
[1742951734167,2.25671853,2072.7,2072.6,5.07409766]
[1742951734383,2.25671853,2072.7,2072.6,0.24924766]
[1742951734550,2.80671853,2072.7,2072.6,0.24924766]
[1742951734754,2.80671853,2072.7,2072.3,4.82539]
[1742951734755,0.778,2072.6,2072.3,4.82539]
[1742951734978,2.25671853,2072.4,2072.3,4.82539]
[1742951735186,2.25671853,2072.4,2072.1,4.82585]
[1742951735486,2.25671853,2072.2,2072.1,4.82585]
[1742951736478,5.25671853,2072.2,2072.0,4.82625]
[1742951737390,5.25671853,2072.2,2072.0,9.65231]
[1742951737585,5.86019038,2072.2,2072.0,4.82606]
[1742951737784,5.25671853,2072.2,2072.1,4.82602]
[1742951739191,5.25671853,2072.2,2072.1,5.03785583]
[1742951739396,5.61165866,2072.2,2072.1,5.03785583]
[1742951739690,5.61165866,2072.2,2072.1,0.21183583]
[1742951741394,5.61165866,2072.2,2072.1,5.03785583]
[1742951745708,5.61165866,2072.2,2072.1,0.21183583]
[1742951745868,6.25190453,2072.2,2072.1,0.21183583]
[1742951747203,6.25190453,2072.2,2072.1,5.03785583]
[1742951747499,5.61165866,2072.2,2072.1,5.03785583]
[1742951753818,3.7908,2072.4,2072.3,4.82555]
[1742951753991,3.0,2072.4,2072.3,5.03857677]
[1742951754391,0.35972013,2072.7,2072.6,4.82474]
[1742951754591,2.25671853,2072.8,2072.7,4.82462]
[1742951754785,28.5974,2073.0,2072.8,4.82423]
[1742951755004,1.40407001,2072.9,2072.8,4.82426]
[1742951755185,4.40407001,2072.9,2072.8,4.82426]
[1742951756420,4.40407001,2072.9,2072.7,4.82462]
[1742951756612,4.40407001,2072.9,2072.7,4.82452]
[1742951756613,1.40407001,2072.8,2072.7,4.82452]
[1742951757023,2.25708785,2072.8,2072.7,4.82452]
[1742951761121,2.25708785,2072.8,2072.6,4.82484]
[1742951761325,2.25708785,2072.8,2072.6,9.64958]
[1742951761528,2.25708785,2072.8,2072.7,4.82462]
[1742951762130,3.37008795,2072.9,2072.8,4.82439]
[1742951762433,3.0,2072.9,2072.8,5.63429]
[1742951764427,3.0,2072.9,2072.7,4.82462]
[1742951764733,2.25708785,2072.8,2072.7,4.82462]
[1742951764898,5.25708785,2072.8,2072.7,4.82462]
[1742951765095,2.25708785,2072.8,2072.7,4.82462]
[1742951766235,2.25708785,2072.8,2072.6,4.82474]
[1742951767433,2.25708785,2072.8,2072.7,4.82462]
[1742951768004,0.36117943,2072.9,2072.8,4.82439]
[1742951768204,5.25708785,2073.0,2072.8,4.82439]
[1742951768406,5.25708785,2073.0,2072.9,4.82415]
[1742951768606,5.25708785,2073.0,2072.8,4.82435]
[1742951769018,5.62765195,2073.0,2072.8,4.82435]
[1742951769336,5.62765195,2073.0,2072.9,0.2077477]
[1742951771810,7.49005714,2073.0,2072.9,0.2077477]
[1742951772009,7.49005714,2073.0,2072.6,4.82468]
[1742951772240,2.25708785,2072.7,2072.6,4.82468]
[1742951773653,2.25708785,2072.9,2072.4,4.8253]
[1742951773837,2.25708785,2072.7,2072.3,15.2569]
[1742951774008,5.25708785,2072.5,2072.2,4.82578]
[1742951774212,2.25708785,2072.3,2072.2,4.8256]
[1742951775845,3.0,2072.2,2072.1,4.826]
[1742951777448,9.76608785,2072.5,2072.1,5.866913]
[1742951777744,9.76608785,2072.5,2072.4,4.82518]
[1742951778342,7.509,2072.7,2072.6,4.82485]
[1742951778556,7.509,2072.7,2072.6,9.6497]
[1742951778557,3.0,2072.7,2072.6,9.6497]
[1742951779122,6.76608785,2072.8,2072.7,4.82462]
[1742951779329,28.07627459,2073.3,2073.0,4.82392]
[1742951779330,3.02988785,2073.2,2073.0,4.82392]
[1742951779646,5.25708785,2073.2,2073.1,4.82369]
[1742951780036,2.25708785,2073.2,2073.1,4.82369]
[1742951780219,27.839,2073.3,2073.2,4.82346]
[1742951780620,30.839,2073.3,2073.2,4.82346]
[1742951781453,27.839,2073.3,2073.2,4.82346]
[1742951781657,30.839,2073.3,2073.2,4.82346]
[1742951782350,3.0,2073.3,2073.2,4.82346]
[1742951783927,3.0,2073.3,2073.2,5.03003853]
[1742951791906,3.0,2073.3,2073.2,0.20657853]
[1742951792233,3.56264762,2073.3,2073.2,0.20657853]
[1742951792524,3.0,2073.3,2073.2,5.03003853]
[1742951793733,3.0,2073.3,2073.2,0.20657853]
[1742951794821,3.76,2073.3,2073.2,0.20657853]
[1742951795323,3.76,2073.3,2073.2,0.20490489]
[1742951795496,3.76,2073.3,2072.9,9.64809]
[1742951795696,2.25708785,2073.0,2072.9,9.64809]
[1742951797051,2.25708785,2073.2,2073.1,4.82369]
[1742951798625,2.25708785,2073.2,2073.0,4.82379]
[1742951799146,2.25708785,2073.2,2073.1,0.20548064]
[1742951800342,3.07328785,2073.2,2073.1,0.20548064]
[1742951800548,3.93061664,2073.2,2073.1,0.20548064]
[1742951800731,3.93061664,2073.2,2072.7,4.82461]
[1742951800935,2.25708785,2072.8,2072.7,4.82461]
[1742951801144,3.0,2073.0,2072.9,4.82415]
[1742951801327,3.0,2073.0,2072.9,5.65635]
[1742951801518,3.0,2073.0,2072.9,7.186876]
[1742951803448,3.0,2073.1,2073.0,4.82387]
[1742951807561,4.508,2073.4,2073.2,4.82346]
[1742951807562,3.0,2073.3,2073.2,4.82346]
[1742951808055,3.0,2073.3,2073.2,5.65566]
[1742951811135,2.53819578,2073.4,2073.3,4.82322]
[1742951811335,2.53819578,2073.4,2073.3,6.353454]
[1742951811530,5.53819578,2073.4,2073.3,6.353454]
[1742951813483,3.0,2073.4,2073.3,6.353454]
[1742951813978,3.0,2073.4,2073.3,6.558155]
[1742951816235,3.0,2073.4,2073.3,7.347455]
[1742951816642,2.53819578,2073.9,2073.8,4.82206]
[1742951816850,5.53819578,2073.9,2073.8,4.82206]
[1742951817060,5.53819578,2073.9,2073.8,5.02286106]
[1742951817232,5.53819578,2073.9,2073.8,0.20080106]
[1742951818158,5.9044435,2073.9,2073.8,5.02286106]
[1742951818365,5.53819578,2073.9,2073.8,5.02286106]
[1742951821268,5.53819578,2073.9,2073.8,0.20080106]
[1742951821465,7.42050536,2073.9,2073.8,0.20080106]
[1742951821671,3.0,2073.8,2073.6,4.82235]
[1742951821984,2.53819578,2073.7,2073.4,4.82278]
[1742951822200,3.0,2073.4,2073.3,9.64629]
[1742951823287,3.0,2073.4,2073.3,11.172217]
[1742951823571,5.53819578,2073.7,2073.6,4.82253]
[1742951828973,3.0,2073.7,2073.6,5.02412899]
[1742951829145,3.0,2073.7,2073.6,5.81342899]
[1742951831961,3.0,2073.7,2073.6,5.02412899]
[1742951834682,4.34441958,2073.7,2073.6,0.20159899]
[1742951836962,8.85141958,2073.7,2073.6,0.20159899]
[1742951837152,11.38912406,2073.7,2073.4,4.82299]
[1742951837351,5.53770448,2073.5,2073.4,4.82299]
[1742951838253,3.0,2073.5,2073.4,6.269955]
[1742951838456,3.0,2073.5,2073.4,7.059255]
[1742951843996,3.0,2073.5,2073.4,7.26157772]
[1742951852402,3.0,2073.5,2073.4,5.02531272]
[1742951855680,3.8087,2073.9,2073.8,4.82206]
[1742951855880,3.0,2073.9,2073.8,4.82206]
[1742951856194,3.0,2073.9,2073.8,5.02241518]
[1742951857705,2.53683374,2074.0,2073.9,4.82183]
[1742951858067,5.53683374,2074.0,2073.9,5.02170269]
[1742951858595,2.53683374,2074.0,2073.9,5.02170269]
[1742951874534,0.23818057,2074.5,2074.2,4.82113]
[1742951874697,0.8108,2074.6,2074.5,4.82043]
[1742951875102,0.8108,2074.6,2074.5,5.01653566]
[1742951875431,3.8108,2074.6,2074.5,5.01653566]
[1742951877506,3.0,2074.6,2074.5,5.01653566]
[1742951877712,3.8108,2074.8,2074.7,4.81997]
[1742951878038,3.8108,2074.8,2074.7,5.01511139]
[1742951880828,3.8108,2074.8,2074.7,0.19514139]
[1742951881337,0.8108,2074.7,2074.4,5.27062468]
[1742951881540,2.53683374,2074.6,2074.4,5.27052468]
[1742951881848,8.3158,2074.7,2074.6,4.8202]
[1742951886649,7.505,2074.7,2074.6,4.8202]
[1742951887030,3.0,2074.7,2074.6,4.8202]
[1742951887235,3.0,2074.7,2074.6,5.6441]
[1742951888115,3.0,2074.7,2074.6,4.8202]
[1742951888948,3.0,2074.7,2074.6,5.01324253]
[1742951893250,3.0,2074.7,2074.6,0.19304253]
[1742951893251,5.53683374,2074.7,2074.6,0.19304253]
[1742951893557,6.66011797,2074.7,2074.4,5.27026095]
[1742951893721,6.66011797,2074.7,2074.5,0.1933762]
[1742951894461,6.66011797,2074.7,2074.5,5.0137962]
[1742951894623,6.66011797,2074.7,2074.5,5.0136262]
[1742951894818,5.53683374,2074.7,2074.6,4.8202]
[1742951895256,5.53683374,2074.7,2074.6,5.01339103]
[1742951895856,5.53683374,2074.7,2074.6,0.19319103]
[1742951896061,3.0,2074.7,2074.6,0.19319103]
[1742951896262,5.53683374,2074.7,2074.6,0.19319103]
[1742951896961,6.66011797,2074.7,2074.6,0.19319103]
[1742951897142,7.48271797,2074.7,2074.4,4.82067]
[1742951897326,3.0,2074.6,2074.5,0.19391451]
[1742951899640,0.8226,2074.5,2074.1,4.82127]
[1742951899836,3.0,2074.1,2074.0,4.82159]
[1742951900025,3.35943374,2074.2,2074.1,4.82136]
[1742951900629,0.8226,2074.2,2074.1,4.82136]
[1742951902065,3.35943374,2074.2,2074.0,9.64309]
[1742951902364,3.35943374,2074.2,2074.1,4.82136]
[1742951903985,3.35943374,2074.2,2074.1,5.01720362]
[1742951904562,2.53683374,2074.2,2074.1,5.01720362]
[1742951906081,2.53683374,2074.2,2074.1,0.19584362]
[1742951906257,3.65391074,2074.2,2074.1,0.19584362]
[1742951907286,3.65391074,2074.2,2074.1,5.01720362]
[1742951909383,4.42201074,2074.2,2074.1,0.19584362]
[1742951909790,4.42201074,2074.2,2074.1,5.01720362]
[1742951910668,3.65391074,2074.2,2074.1,5.01720362]
[1742951913791,2.53683374,2074.2,2074.1,5.01720362]
[1742951916965,1.57785322,2074.2,2074.1,5.01720362]
[1742951924207,6.96030644,2074.2,2074.1,0.19584362]
[1742951924403,3.0,2074.1,2073.8,5.5420227]
[1742951924702,1.57785322,2073.9,2073.8,5.5420227]
[1742951925003,9.88745322,2073.9,2073.8,0.7201527]
[1742951925202,3.0,2073.8,2073.6,4.82231]
[1742951925403,1.57785322,2073.7,2073.6,4.82231]
[1742951926212,1.57785322,2073.7,2073.5,4.82275]
[1742951926213,2.38245322,2073.7,2073.5,4.82275]
[1742951926506,2.11609854,2073.6,2073.4,4.82295]
[1742951926679,1.57785322,2073.5,2073.4,4.82295]
[1742951926880,5.53772088,2073.5,2073.4,4.82295]
[1742951928185,3.0,2073.5,2073.4,4.82295]
[1742951930694,5.53772088,2073.5,2073.4,4.82295]
[1742951930899,3.0,2073.4,2073.3,4.82308]
[1742951931098,3.12716396,2073.5,2073.3,4.82308]
[1742951933017,3.12716396,2073.5,2073.4,4.82299]
[1742951934027,3.12716396,2073.5,2073.4,5.0256843]
[1742951937590,6.12716396,2073.5,2073.4,0.2026943]
[1742951939529,6.12716396,2073.5,2073.4,5.0256843]
[1742951941327,5.53772088,2073.5,2073.4,5.0256843]
[1742951941834,3.0,2073.5,2073.4,5.0256843]
[1742951942408,5.53772088,2073.5,2073.4,5.0256843]
[1742951942607,6.31978799,2073.5,2073.4,0.2026943]
[1742951942808,6.31978799,2073.5,2073.2,9.6468]
[1742951943009,2.53772088,2073.3,2073.2,9.6468]
[1742951944738,5.53772088,2073.3,2073.2,9.6468]
[1742951944936,5.53772088,2073.3,2073.2,4.82335]
[1742951945140,3.7859,2073.2,2072.9,4.82393]
[1742951945336,5.53772088,2073.0,2072.9,4.82393]
[1742951946638,5.90206165,2073.0,2072.9,4.82393]
[1742951949230,5.90206165,2073.0,2072.9,5.02942862]
[1742951958103,5.53772088,2073.0,2072.9,5.02942862]
[1742951960647,5.89389567,2073.0,2072.9,5.02942862]
[1742951960852,4.93571462,2073.0,2072.9,5.02942862]
[1742951961156,4.57953983,2073.0,2072.9,5.02942862]
[1742951964285,3.0,2073.0,2072.9,5.02942862]
[1742951964487,3.0,2073.0,2072.9,5.80842862]
[1742951965999,3.0,2073.0,2072.9,6.16950751]
[1742951966205,4.57953983,2073.0,2072.9,6.16950751]
[1742951967402,3.0,2073.0,2072.9,6.16950751]
[1742951967793,3.0,2073.0,2072.9,5.80842862]
[1742951969984,3.0,2073.0,2072.9,6.92938687]
[1742951970982,3.0,2073.0,2072.9,7.6522812]
[1742951971283,3.0,2073.0,2072.9,8.59057922]
[1742951975041,4.507,2073.5,2073.4,4.82282]
[1742951975481,7.507,2073.5,2073.4,5.02694532]
[1742951975682,3.0,2073.5,2073.4,5.02694532]
[1742951975881,3.0,2073.5,2073.4,6.08985885]
[1742951976116,1.57953983,2073.6,2073.4,6.08985885]
[1742951976806,1.57953983,2073.6,2073.4,5.02694532]
[1742951977105,5.53695005,2073.7,2073.4,5.02694532]
[1742951978517,10.04395005,2073.7,2073.4,5.02694532]
[1742951984737,10.04395005,2073.7,2073.4,0.20412532]
[1742951984930,10.87415005,2073.7,2073.4,0.20412532]
[1742951985129,1.12399065,2073.6,2073.2,0.7216305]
[1742951985431,1.12399065,2073.6,2073.5,0.20239745]
[1742951985640,1.12399065,2073.6,2073.2,5.5450805]
[1742951985828,10.87415005,2073.7,2073.5,0.20239745]
[1742951986039,10.87415005,2073.7,2073.2,5.5450805]
[1742951986339,10.87415005,2073.7,2073.2,4.82345]
[1742951986510,10.87415005,2073.7,2073.3,0.20336284]
[1742951989419,8.3372,2073.7,2073.3,0.20336284]
[1742951989621,2.53695005,2073.6,2073.3,0.20336284]
[1742951990549,2.53695005,2073.6,2073.3,5.02657284]
[1742951990754,2.53695005,2073.6,2073.3,7.60965817]
[1742951992138,2.53695005,2073.6,2073.3,5.02657284]
[1742951992655,8.3372,2073.7,2073.3,5.02657284]
[1742951996934,1.57859883,2073.6,2073.3,5.02657284]
[1742951997971,1.57859883,2073.5,2073.3,5.02657284]
[1742951999039,1.57859883,2073.5,2073.4,0.36130242]
[1742951999464,1.57859883,2073.5,2073.4,0.56449845]
[1742952001869,1.57859883,2073.6,2073.4,0.56449845]
[1742952002876,1.57859883,2073.5,2073.4,0.56449845]
[1742952003085,1.57859883,2073.5,2073.4,0.20319603]
[1742952004848,1.57859883,2073.6,2073.4,0.20319603]
[1742952005582,9.08559883,2073.7,2073.4,0.98229603]
[1742952005953,9.08559883,2073.7,2073.4,5.80525603]
[1742952006154,7.507,2073.7,2073.4,5.80525603]
[1742952006559,0.7611,2073.9,2073.5,0.36198415]
[1742952006750,0.7611,2074.1,2073.9,4.82183]
[1742952006988,6.08359883,2074.3,2074.0,0.19972463]
[1742952007355,1.57859883,2074.2,2074.0,0.19972463]
[1742952007551,3.0,2074.2,2074.0,0.19972463]
[1742952007790,1.57859883,2074.1,2074.0,0.19972463]
[1742952008200,1.57859883,2074.1,2073.8,4.82206]
[1742952008375,1.57859883,2074.1,2074.0,0.1992416]
[1742952008765,1.57859883,2074.1,2073.8,5.864408]
[1742952009090,1.57859883,2074.1,2074.0,0.1992416]
[1742952009263,1.57859883,2074.1,2073.9,0.65122581]
[1742952009464,4.57859883,2074.2,2074.0,0.1992416]
[1742952009665,1.57859883,2074.2,2074.0,6.92052674]
[1742952009864,4.57859883,2074.2,2074.0,2.09893674]
[1742952011386,1.57859883,2074.1,2074.0,2.09893674]
[1742952011582,1.57859883,2074.1,2074.0,1.33293674]
[1742952013571,1.57859883,2074.1,2074.0,0.1992416]
[1742952013766,2.35339883,2074.1,2074.0,0.1992416]
[1742952013999,3.93199766,2074.1,2073.9,0.36057109]
[1742952014184,2.35339883,2074.0,2073.9,0.36057109]
[1742952015099,2.35339883,2074.0,2073.9,0.8111604]
[1742952015298,6.0465986,2074.0,2073.9,0.45058931]
[1742952016422,5.35339883,2074.0,2073.9,0.45058931]
[1742952016575,5.35339883,2074.0,2073.7,5.60447]
[1742952016576,4.57859883,2074.0,2073.7,5.60447]
[1742952016782,1.57859883,2073.9,2073.7,0.7823]
[1742952017275,1.57859883,2073.8,2073.7,0.7823]
[1742952017477,1.57859883,2073.8,2073.6,5.18291109]
[1742952017693,1.57859883,2073.8,2073.6,6.31941714]
[1742952018429,1.57859883,2073.8,2073.6,20.81941714]
[1742952018787,1.57859883,2073.7,2073.6,0.36057109]
[1742952019517,1.57859883,2073.8,2073.6,0.36057109]
[1742952020283,1.57859883,2073.8,2073.6,0.8115308]
[1742952021402,1.57859883,2074.0,2073.6,5.6339308]
[1742952021603,1.57859883,2074.0,2073.8,0.7823]
[1742952021803,0.36458785,2074.4,2073.8,0.7823]
[1742952021804,1.57859883,2074.1,2073.9,4.82171]
[1742952021982,1.57859883,2074.2,2073.9,4.82171]
[1742952023005,5.53553147,2074.3,2073.9,9.64339]
[1742952023721,5.53553147,2074.3,2073.9,4.82168]
[1742952024298,5.53553147,2074.3,2074.0,0.19892583]
[1742952025334,2.53553147,2074.3,2074.0,2.77606445]
[1742952025788,5.53553147,2074.3,2074.0,2.77606445]
[1742952026548,5.53553147,2074.3,2074.0,7.59757445]
[1742952028021,5.53553147,2074.3,2074.0,5.02043583]
[1742952028255,5.53553147,2074.3,2074.0,5.02033583]
[1742952028533,3.0,2074.3,2074.1,0.7729]
[1742952028736,3.0,2074.3,2074.1,5.59417]
[1742952028940,3.0,2074.3,2074.2,0.19736675]
[1742952029095,3.0,2074.3,2074.2,1.25867942]
[1742952029609,0.7766,2074.6,2074.4,4.82051]
[1742952029809,7.81613147,2074.8,2074.4,5.59346]
[1742952030014,7.81613147,2074.8,2074.5,0.19512129]
[1742952030015,3.0,2074.7,2074.5,0.19512129]
[1742952030811,2.53553147,2074.6,2074.5,0.19512129]
[1742952031443,2.53553147,2074.6,2074.2,6.65534267]
[1742952031642,2.53553147,2074.6,2074.5,0.19512129]
[1742952031805,2.53553147,2074.6,2074.3,5.96853027]
[1742952032011,3.0,2074.7,2074.5,0.19512129]
[1742952032311,3.0,2074.7,2074.4,5.78869358]
[1742952033810,3.0,2074.7,2074.4,5.78865358]
[1742952034145,3.0,2074.8,2074.6,4.8202]
[1742952034311,3.0,2074.8,2074.7,0.19376709]
[1742952036554,3.02,2074.9,2074.7,0.19376709]
[1742952036917,3.02,2074.9,2074.7,0.96666709]
[1742952038219,3.02,2074.9,2074.7,0.19376709]
[1742952038650,3.02,2074.9,2074.5,6.28693239]
[1742952038852,3.02,2074.9,2074.8,0.19306224]
[1742952039031,3.02,2074.9,2074.6,1.11073924]
[1742952039226,3.02,2074.9,2074.8,0.19306224]
[1742952039427,3.02,2074.9,2074.7,0.19354431]
[1742952039628,3.02,2074.9,2074.8,0.19306224]
[1742952040051,3.02,2074.9,2074.6,1.11073924]
[1742952040254,3.7915,2074.9,2074.8,0.19306224]
[1742952040457,0.7715,2074.8,2074.7,0.19354431]
[1742952040667,0.7715,2074.8,2074.0,0.7631]
[1742952040962,10.05853147,2074.9,2074.6,4.82015]
[1742952041139,10.05853147,2074.9,2074.7,0.192449]
[1742952041757,5.55553147,2074.9,2074.7,0.192449]
[1742952042653,0.02,2074.9,2074.7,0.192449]
[1742952042841,0.02,2074.9,2074.8,4.81974]
[1742952043232,0.02,2074.9,2074.8,5.01170693]
[1742952043431,0.02,2074.9,2074.8,1.17512462]
[1742952043631,0.02,2074.9,2074.8,5.99486462]
[1742952044047,0.02,2074.9,2074.8,6.80615712]
[1742952044259,0.02,2074.9,2074.8,6.80615676]
[1742952044764,0.02,2074.9,2074.8,21.25796462]
[1742952045765,0.02,2074.9,2074.8,21.80796462]
[1742952046340,0.02,2074.9,2074.8,21.25796462]
[1742952046553,0.02,2074.9,2074.8,21.61739009]
[1742952047064,1e-05,2074.9,2074.8,21.61739009]
[1742952049367,1e-05,2074.9,2074.8,22.16739009]
[1742952049551,0.55,2075.3,2075.2,5.58191]
[1742952049552,1e-05,2075.3,2075.2,5.58191]
[1742952049758,1e-05,2075.3,2075.2,9.87582576]
[1742952049955,1e-05,2075.3,2075.2,9.8276579]
[1742952050257,1e-05,2075.3,2075.2,10.3776579]
[1742952050567,1e-05,2075.3,2075.2,27.8776579]
[1742952051271,1e-05,2075.3,2075.2,28.23708337]
[1742952052254,1e-05,2075.3,2075.2,32.74108337]
[1742952053092,1e-05,2075.3,2075.2,14.69508337]
[1742952053399,1e-05,2075.3,2075.2,10.18708337]
[1742952053555,1e-05,2075.3,2075.2,7.6515519]
[1742952055493,1e-05,2075.3,2075.2,10.18708337]
[1742952055694,1e-05,2075.3,2075.2,13.73708337]
[1742952056566,1e-05,2075.3,2075.2,14.69087935]
[1742952057291,2.025865,2076.4,2076.3,4.81625]
[1742952057477,2.025865,2076.4,2076.3,8.39723947]
[1742952057676,2.025865,2076.4,2076.3,9.39835371]
[1742952057987,4.538,2077.7,2076.3,9.39835371]
[1742952057988,0.9209715,2078.1,2076.7,0.8219]
[1742952058188,2.53553147,2077.7,2076.9,4.81486]
[1742952058487,0.7995,2077.8,2077.5,4.81332]
[1742952058656,0.7995,2077.8,2077.0,1.13203433]
[1742952058657,0.1214715,2078.1,2078.0,4.81231]
[1742952059209,0.1214715,2078.1,2078.0,5.02918175]
[1742952059358,0.1214715,2078.1,2078.0,4.98106958]
[1742952059857,0.02,2078.9,2078.8,4.81046]
[1742952060209,0.02,2078.9,2078.8,0.1630477]
[1742952060486,2.55553147,2078.9,2078.8,0.1630477]
[1742952060664,2.55553147,2078.9,2078.1,4.81192]
[1742952060865,0.02,2078.9,2078.8,0.15346222]
[1742952061079,3.0,2078.8,2078.1,4.81192]
[1742952061282,4.81,2078.8,2078.3,4.81146]
[1742952061787,7.54386755,2078.7,2078.4,0.15409353]
[1742952061987,3.0,2078.6,2078.1,4.81191]
[1742952062190,3.0,2078.6,2078.2,0.15534979]
[1742952062400,0.02,2078.9,2078.7,4.81054]
[1742952062566,0.02,2078.9,2078.8,5.01139458]
[1742952062771,0.02,2078.9,2078.8,4.96329713]
[1742952062974,0.02,2078.9,2078.8,0.15283713]
[1742952063175,0.02,2078.9,2078.8,4.81046]
[1742952063382,0.02,2078.9,2078.8,4.96252162]
[1742952063709,0.02,2078.9,2078.8,5.98792065]
[1742952063872,0.02,2078.9,2078.8,5.93982578]
[1742952064197,0.02,2078.9,2078.8,21.62869261]
[1742952064791,0.207,2079.0,2078.9,4.81023]
[1742952064991,0.207,2079.0,2078.9,7.696679]
[1742952065188,0.207,2079.0,2078.9,6.87349777]
[1742952065493,0.207,2079.0,2078.9,4.96181145]
[1742952066635,0.207,2079.0,2078.9,0.15158145]
[1742952066913,0.757,2079.0,2078.9,0.15158145]
[1742952067285,0.55,2078.9,2078.6,4.81076]
[1742952067523,0.207,2079.0,2078.6,4.81076]
[1742952067816,0.55,2078.9,2078.8,4.81046]
[1742952067984,0.3757,2079.0,2078.5,4.81096]
[1742952068192,0.3757,2079.0,2078.4,4.81127]
[1742952068193,0.3757,2079.0,2078.6,4.8108]
[1742952068400,0.3757,2079.0,2078.6,4.81079]
[1742952068597,0.3757,2079.0,2078.7,4.81054]
[1742952069088,0.3757,2079.0,2078.8,0.15187702]
[1742952069396,0.3757,2079.0,2078.4,4.81122]
[1742952069705,0.3757,2079.0,2078.6,4.81089]
[1742952069924,0.3757,2079.0,2078.7,4.81054]
[1742952070132,3.55,2079.1,2079.0,4.81]
[1742952070283,3.55,2079.1,2078.9,4.81015]
[1742952070483,3.55,2079.1,2078.8,4.85837924]
[1742952070484,0.7995,2079.4,2079.0,0.15095365]
[1742952070730,2.73486755,2079.7,2079.3,4.80929]
[1742952070731,4.876,2079.7,2079.3,4.80929]
[1742952071027,4.876,2079.7,2079.0,0.96145365]
[1742952071028,0.55,2079.5,2079.4,0.14903362]
[1742952071327,6.22246755,2079.6,2079.4,0.14903362]
[1742952071524,0.7643,2079.5,2078.7,4.81054]
[1742952071692,0.55,2079.4,2078.7,4.81054]
[1742952071882,0.55,2079.4,2078.8,0.15091721]
[1742952072385,0.55,2079.2,2078.8,0.15091721]
[1742952072586,4.879,2079.1,2078.5,4.81101]
[1742952072808,0.55,2078.9,2078.7,4.81066]
[1742952072987,4.881,2079.0,2078.9,4.81023]
[1742952073195,8.434,2079.2,2078.9,0.15054777]
[1742952073583,8.434,2079.2,2078.9,4.96076777]
[1742952073833,8.434,2079.2,2078.9,4.96062777]
[1742952074537,7.884,2079.2,2078.9,9.77075777]
[1742952075115,8.429,2079.3,2078.9,4.96060777]
[1742952076287,9.2719,2079.3,2078.9,4.96060777]
[1742952076708,3.55,2079.2,2078.9,0.15054777]
[1742952077105,3.55,2079.2,2078.6,4.81074]
[1742952077435,1.3143,2079.1,2078.6,4.81074]
[1742952077614,0.55,2079.0,2078.7,4.96211816]
[1742952077805,0.55,2079.0,2078.7,0.15150816]
[1742952078794,0.55,2079.0,2078.8,0.15102794]
[1742952079009,0.55,2079.0,2078.6,4.8109]
[1742952079220,0.55,2079.0,2078.9,0.15054777]
[1742952079495,0.98143,2079.0,2078.6,4.8109]